Cogmind - Beta 16 @@@ ROGUE MODE // 2025.11.06 @ 23:22:28 Player: calciume Result: Destroyed by Y-45 Defender with Beam Rifle Performance ------------- Evolutions (1) 500 Regions Visited (2) 400 Robots Destroyed (59) 295 Value Destroyed (1204) 1204 Prototype IDs (1) 20 Alien Tech Used (0) 0 Bonus (8) 8 TOTAL SCORE: 2427 Bonus ------- High Alert Combat Kills 8 Cogmind --------- Core Integrity 0/400 Matter 300/300 Energy 265/265 System Corruption 0% Temperature Hot (249) Movement Core (850) Ox16 Location -9/Materials Parts ------- > --- POWER (1) -------- Improved Ion Engine > --- PROPULSION (3) --- (None) > --- UTILITY (3) ------ High-capacity Storage Unit Hacking Suite > --- WEAPON (2) ------- Beam Rifle > --- INVENTORY (20) --- Ion Engine Light Treads Light Treads Aluminum Leg Flight Unit Flight Unit Cesium-ion Thruster Cesium-ion Thruster Cesium-ion Thruster Heat Sink Medium Storage Unit Visual Processing Unit Improved Terrain Scanner Light Armor Plating Medium Armor Plating Hardened Medium Armor Plating Ion Cannon Mini Grenade Launcher Peak State ------------ > --- POWER ------------ Improved Ion Engine > --- PROPULSION ------- Wheel Wheel Wheel > --- UTILITY ---------- High-capacity Storage Unit Hardened Medium Armor Plating Hacking Suite > --- WEAPON ----------- Beam Rifle Improved Medium Laser > --- INVENTORY -------- Ion Engine Light Treads Light Treads Aluminum Leg Flight Unit Flight Unit Cesium-ion Thruster Cesium-ion Thruster Cesium-ion Thruster Heat Sink Medium Storage Unit Visual Processing Unit Improved Terrain Scanner Light Armor Plating Medium Armor Plating Hardened Medium Armor Plating Mini Grenade Launcher [Rating: 20] Favorites ----------- Power Light Ion Engine Engine Light Ion Engine Propulsion Light Treads Treads Light Treads Wheel Wheel Utility Medium Storage Unit Device Seismic Detector Storage Medium Storage Unit Processor Targeting Computer Hackware Hacking Suite Protection Medium Armor Plating Weapon Small Laser Energy Gun Small Laser Energy Cannon Light EM Pulse Cannon Ballistic Gun Light Assault Rifle Special Weapon Mining Laser Build | -11 -10 -9 ------- Run | Yrd Mat Mat Slots Evolved 2 | . . 2 Power . | . . . Propulsion 1 | . . 1 Utility 1 | . . 1 Weapon . | . . . Parts Attached 38 | 8 5 25 Power 7 | 1 2 4 Engine 7 | 1 2 4 Core . | . . . Reactor . | . . . Propulsion 6 | 2 . 4 Treads 2 | 2 . . Leg . | . . . Wheel 4 | . . 4 Hover . | . . . Flight . | . . . Utility 15 | 3 2 10 Device 5 | 2 1 2 Storage 3 | 1 1 1 Processor 1 | . . 1 Hackware 1 | . . 1 Protection 5 | . . 5 Artifact . | . . . Weapon 10 | 2 1 7 Energy Gun 4 | 1 . 3 Energy Cannon 1 | . . 1 Ballistic Gun 4 | 1 1 2 Ballistic Cannon . | . . . Launcher . | . . . Special Weapon 1 | . . 1 Impact Weapon . | . . . Slashing Weapon . | . . . Piercing Weapon . | . . . Special Melee Weapon . | . . . Unidentified Prototypes 1 | . . 1 Parts Lost 16 | . . 16 Power 1 | . . 1 Propulsion 6 | . . 6 Utility 5 | . . 5 Weapon 4 | . . 4 Highest Loss Streak 5 | . . 5 To Critical Strikes . | . . . Average Backups 9 | 4 9 10 Power 1 | . 1 1 Propulsion 4 | 2 5 4 Utility 2 | . 1 3 Weapon 1 | . 1 1 Tool/Special . | . . . Unused Backups 18 | . 2 16 Power . | . . . Propulsion 11 | . 1 10 Utility 4 | . . 4 Weapon 3 | . 1 2 Tool/Special . | . . . Average Slot Usage (%) 87 | . 100 80 Engine 10 | . 14 8 Treads 13 | . 28 6 Wheel 8 | . . 13 Device 10 | . 14 8 Storage 11 | . 14 11 Processor 1 | . . 1 Hackware 1 | . . 2 Protection 5 | . . 7 Energy Gun 11 | . 14 10 Ballistic Gun 11 | . 14 9 Peak Build Rating 20 | 9 8 20 Average Rating 10 | 5 8 12 On Entrance 5 | . 8 8 Avg Prop Armor Cover (%) . | . . . Naked Turns . | . . . Heaviest Build 61 | 11 16 61 Greatest Support 40 | 40 40 40 Greatest Overweight (x) 8 | . . 8 Average Overweight (x) . | . . . Largest Inventory Capacity 20 | 8 10 20 Average Capacity 10 | 7 9 11 Most Carried 18 | 8 10 18 Average Carried 9 | 4 9 10 Final Capacity 20 | 8 10 20 Final Carried 18 | 8 10 18 Class Distribution -------------------- 80% | Mutant 19% | Scavenger-Mutant Dominant Class ---------------- Mutant | -10/Materials Mutant | -9/Materials Resources | -11 -10 -9 ----------- Run | Yrd Mat Mat Matter Collected 930 | 152 243 535 Remotely . | . . . Salvage Created 1891 | 136 492 1263 Parts 122 | 9 37 76 Haulers Intercepted 2 | . . 2 Recyclers Shooed 1 | . . 1 Parts Field Recycled . | . . . Retrieved Matter . | . . . Parts Self-Destructed . | . . . Prevented . | . . . Parts Restored . | . . . Kills | -11 -10 -9 ------- Run | Yrd Mat Mat Combat Hostiles Destroyed 32 | . 12 20 Guns 27 | . 12 15 Cannons 2 | . . 2 AOE 3 | . . 3 Classes Destroyed 9 | 2 5 2 Worker 7 | . 1 6 Tunneler 7 | 3 1 3 Hauler 2 | . . 2 Recycler 3 | 1 . 2 Operator 3 | . 1 2 Watcher 5 | . 2 3 Swarmer 9 | . 5 4 Grunt 19 | . 7 12 Sentry 4 | . . 4 Best Kill Streak 5 | 1 3 5 Combat Bots Only 5 | . 3 5 Max Kills in Single Turn 2 | 1 1 2 Gunslinging . | . . . Exploded 2 | . . 2 Melee . | . . . Uniques/NPCs Destroyed . | . . . Combat | -11 -10 -9 -------- Run | Yrd Mat Mat Hostile Shots Fired 288 | . 63 225 Missed 73 | . 20 53 Hits 215 | . 43 172 Projectile 215 | . 43 172 Critical Strikes 5 | . 1 4 Damage Taken 2553 | . 467 2086 Core 504 | . 91 413 Absorbed by Shields . | . . . Regen/Repaired (Parts) 74 | . . 74 Core Remaining (%) 81 | 100 63 . Volleys Fired 171 | 15 52 104 Largest 2 | 2 2 2 Hottest 140 | 60 60 140 Shots Fired 323 | 30 103 190 Gun 303 | 30 103 170 Cannon 16 | . . 16 Launcher . | . . . Special 4 | . . 4 Kinetic 155 | 15 52 88 Thermal 126 | 15 51 60 Explosive . | . . . Electromagnetic 42 | . . 42 Robot Hit Streak 12 | 7 11 12 Robot Miss Streak 7 | 4 7 6 Penetration Max . | . . . Secondary Targets 1 | . 1 . Max Gunslinging Chain 1 | . 1 . Shots Hit Robots 202 | 18 61 123 Core Hits 92 | 8 32 52 Critical Kills 1 | . . 1 Critical Parts Destroyed . | . . . Critical Strikes 5 | . . 5 Burn 4 | . . 4 Destroy 1 | . . 1 Melee Attacks . | . . . Impact . | . . . Slashing . | . . . Piercing . | . . . Sneak Attacks . | . . . Combat Hostiles . | . . . Follow-up Attacks . | . . . Damage Inflicted 3295 | 177 608 2510 Guns 2419 | 177 608 1634 Cannons 307 | . . 307 Explosions 521 | . . 521 Melee . | . . . Ramming . | . . . Kinetic 1157 | 88 238 831 Thermal 1632 | 89 370 1173 Explosive . | . . . Electromagnetic 506 | . . 506 Impact . | . . . Slashing . | . . . Piercing . | . . . Highest Corruption . | . . . Average Corruption . | . . . Corruption Purged . | . . . Corruption Blocked . | . . . Overload Shots . | . . . Overflow Damage 76 | . . 76 Projectiles 25 | . . 25 Explosions 51 | . . 51 Melee . | . . . Knockbacks . | . . . Impact . | . . . Kinetic . | . . . Secondary . | . . . Self-Inflicted Damage 202 | . . 202 Shots 3 | . . 3 Rammed 1 | . . 1 Targets Rammed 1 | . . 1 Kicked . | . . . Crushed . | . . . Highest Temperature 255 | 40 144 255 Average Temperature 52 | 17 38 64 Received Heat Transfer 810 | . 213 597 Effects 1 | . . 1 Energy Bleed 1 | . . 1 Siege Activations . | . . . Martial Activations . | . . . Shielding Activations . | . . . Robots Disrupted . | . . . Combat Hostiles . | . . . Robots Corrupted . | . . . Combat Hostiles . | . . . Parts Fried . | . . . Impact Corruptions . | . . . Robots Melted . | . . . Combat Hostiles . | . . . Parts Melted 3 | . . 3 Heat Transferred 3043 | 200 850 1993 Parts Sabotaged . | . . . Parts Stolen . | . . . Parts Stripped . | . . . Power Chain Reactions 3 | . . 3 Alert | -11 -10 -9 ------- Run | Yrd Mat Mat Maximum Alert Level 2 | . . 2 Low Security (%) 77 | 100 100 62 Level 1 20 | . . 34 Level 2 1 | . . 2 Level 3 . | . . . Level 4 . | . . . Level 5 . | . . . High Security . | . . . Max Security . | . . . Peak Influence 408 | 5 110 408 Initial 35 | . . 35 Average 90 | . 35 131 Influence Increases 1176 | 20 335 821 Destroy 0b10 Robot/C 640 | . 240 400 Destroy 0b10 Robot/NC 135 | 20 25 90 Destroy Leader 154 | . 54 100 Successful Hack 29 | . 16 13 Disable Machine 45 | . . 45 Destroy Structure 23 | . . 23 Partial Spotted 15 | . . 15 Lose Combat Pursuer 135 | . . 135 Influence Decreases 803 | 20 251 532 Entered New Map 49 | . . 49 Time Decay 594 | 20 251 323 Lost Part 160 | . . 160 Squads Dispatched 8 | . 4 4 Investigation 5 | . 1 4 Extermination . | . . . Reinforcement 3 | . 3 . Assault . | . . . Garrison . | . . . Intercept . | . . . Searches Triggered . | . . . Construction Impeded . | . . . Haulers Reinforced . | . . . Active Scanning Responses . | . . . Cargo Convoy Interrupts . | . . . Stealth | -11 -10 -9 --------- Run | Yrd Mat Mat Distress Signals 5 | . 2 3 Communications Jammed . | . . . Distress Signals . | . . . Times Spotted 67 | . 19 48 Peak Tracking Total 6 | . 3 6 Tactical Retreats 6 | . . 6 Traps | -11 -10 -9 ------- Run | Yrd Mat Mat Traps Triggered 1 | . 1 . Indirectly . | . . . Trap Hack Attempts . | . . . Triggered . | . . . Disarmed . | . . . Reprogrammed . | . . . Reused . | . . . Traps Extracted . | . . . Installed . | . . . Triggered . | . . . Machines | -11 -10 -9 ---------- Run | Yrd Mat Mat Machines Disabled 3 | . . 3 Max in Single Turn 2 | . . 2 Machines Repaired . | . . . Machines Dismantled . | . . . Machines Sabotaged . | . . . Overloaded Fab Kills . | . . . Hacking | -11 -10 -9 --------- Run | Yrd Mat Mat Machines Accessed 11 | . 5 6 Terminals 8 | . 4 4 Fabricators . | . . . Repair Stations 1 | . . 1 Recycling Units 1 | . 1 . Scanalyzers 1 | . . 1 Garrison Access . | . . . Total Hacks 32 | . 13 19 Successful 18 | . 7 11 Failed 13 | . 6 7 Catastrophic 3 | . . 3 Database Lockouts 1 | . . 1 Manual 13 | . 5 8 Terminals 25 | . 12 13 Fabricators . | . . . Repair Stations 2 | . . 2 Recycling Units 1 | . 1 . Scanalyzers 4 | . . 4 Garrison Access . | . . . Terminal Hacks 12 | . 6 6 Record 6 | . 3 3 Alert Level 1 | . . 1 Unreport Threat 1 | . 1 . Security Status 1 | . . 1 Surveillance Status 1 | . 1 . Recall Investigation 1 | . 1 . Hauler Manifests 1 | . . 1 Fabricator Hacks . | . . . Repair Station Hacks 2 | . . 2 Scan Component 1 | . . 1 Repair 1 | . . 1 Recycling Unit Hacks 1 | . 1 . Report Inventory 1 | . 1 . Scanalyzer 3 | . . 3 Retrieve Study 3 | . . 3 Garrison Access Hacks . | . . . Unauthorized Hacks . | . . . Terminals . | . . . Fabricators . | . . . Repair Stations . | . . . Recycling Units . | . . . Scanalyzers . | . . . Garrison Access . | . . . Data Cores Recovered 2 | . . 2 Used . | . . . Hacking Detections 8 | . 2 6 Full Trace Events 6 | . 2 4 Feedback Events . | . . . Feedback Blocked . | . . . Robot Schematics Acquired . | . . . Robots Built . | . . . Authchips . | . . . Time . | . . . Total Robot Build Rating . | . . . Part Schematics Acquired . | . . . Parts Built . | . . . Authchips . | . . . Time . | . . . Total Part Build Rating . | . . . Part Studies Acquired 3 | . . 3 Parts Repaired 1 | . . 1 Time 26 | . . 26 Parts Recycled . | . . . Recycled Matter . | . . . Retrieved Matter . | . . . Retrieved Components . | . . . Parts Scanalyzed . | . . . Part Schematics Acquired . | . . . Parts Damaged . | . . . Bothacking | -11 -10 -9 ------------ Run | Yrd Mat Mat Used RIF Installer . | . . . Robots Hacked . | . . . Non-combat . | . . . Combat . | . . . Robot Hacks Applied . | . . . Relay Couplers Released . | . . . Fabnet Peak Effective % . | . . . Robots Rewired . | . . . Allies Hacked . | . . . Hacks Repelled . | . . . Allies | -11 -10 -9 -------- Run | Yrd Mat Mat Total Allies . | . . . Largest Group . | . . . Highest-Rated Group . | . . . Highest-Rated Ally . | . . . Total Orders . | . . . Ally Attacks . | . . . Total Damage . | . . . Kills . | . . . Allies Corrupted . | . . . Allies Melted . | . . . Intel | -11 -10 -9 ------- Run | Yrd Mat Mat Active Infowar (turns) 1258 | 39 765 454 Terrain 25 | 25 . . Seismic 1233 | 14 765 454 Robot Analysis Total . | . . . Derelict Logs Recovered . | . . . Drone Launches . | . . . Drone Recoveries . | . . . Exploration | -11 -10 -9 ------------- Run | Yrd Mat Mat Turns Passed 2582 | 261 765 1556 Spaces Moved 1274 | 126 350 798 Core 6 | 1 . 5 Treads 828 | 125 350 353 Legs . | . . . Wheels 440 | . . 440 Hover . | . . . Flight . | . . . Fastest Speed 50 | 50 160 70 Average Speed 142 | 159 160 131 Slowest Speed 450 | 160 160 450 Overloaded Moves . | . . . Propulsion Burnouts . | . . . Robots Hopped . | . . . Potential Cave-ins . | . . . Cave-ins Triggered . | . . . Exploration Rate (%) 35 | 6 51 48 Regions Visited 2 Branch Regions . Pre-discovered Areas . | . . . Known Exits Taken . | . . . Unknown Exits Taken 2 | 1 1 . Scrap Searched . | . . . Spaces Dug . | . . . Terrain Destroyed 25 | . . 25 Melee . | . . . Projectile 2 | . . 2 AOE 23 | . . 23 Terrain Rammed . | . . . Walls Destroyed . | . . . Machines Disabled . | . . . Actions | -11 -10 -9 --------- Run | Yrd Mat Mat Total 1715 | 156 467 1092 Wait 184 | . 50 134 Move 1272 | 125 349 798 Hop . | . . . Pick Up 25 | 8 4 13 Fast Attach 21 | 7 . 14 Attach 5 | . . 5 Detach 3 | . . 3 Swap 15 | 1 5 9 Drop 18 | . 7 11 Fire 171 | 15 52 104 Melee . | . . . Ram 1 | . . 1 Kick . | . . . Crush . | . . . Escape Stasis . | . . . Rewire . | . . . Trap . | . . . Miscellaneous . | . . . Route ------- -11/Scrapyard -10/Materials (discovered 4 exits: *Mat x3 / [*Min]) -9/Materials (discovered 1 exit: [*Mat]) History --------- Turn | Location | Event 15 | -11/Scrapyard | Discovered new exit (range 13) 262 | -11/Scrapyard | Entered Materials 319 | -10/Materials | Build established: Mutant 611 | -10/Materials | Discovered new exit (range 8) 778 | -10/Materials | Discovered new exit (range 11) 813 | -10/Materials | Discovered new exit (range 16) 1015 | -10/Materials | Discovered new exit (range 5) 1027 | -10/Materials | Entered another Materials area 1027 | -9/Materials | Evolved 2 slots: Propulsion x1, Utility x1 1122 | -9/Materials | Lost 4 parts (1p1n1u1w) 1396 | -9/Materials | Repaired Lgt. Treads 1824 | -9/Materials | Core integrity fell below 50% 2098 | -9/Materials | Discovered new exit (range 16) 2412 | -9/Materials | Central database locked down 2510 | -9/Materials | Build established: Scavenger-Mutant 2555 | -9/Materials | Core integrity fell below 20% 2583 | -9/Materials | Destroyed by Y-45 Defender with Beam Rifle Last Messages --------------- 02444_ G-34 Mercenary destroyed. 02450_ G-34 Mercenary suffers critical hit (Burn). 02450_ Heat Sink melted. 02450_ G-34 Mercenary destroyed. 02459_ Hvy. Assault Rifle destroyed. 02463_ G-34 Mercenary destroyed. 02470_ Acquired Beam Rifle. 02479_ G-34 Mercenary destroyed. 02487_ Overheating: Energy bleed (-60). 02491_ Acquired 17 matter. 02515_ Acquired Cesium-ion Thruster. 02523_ Acquired Hrd. Medium Armor Plating. 02527_ Acquired Ion Cannon. 02553_ Wheel+ destroyed. 02560_ Slammed into S-10 Pest. 02560_ Destabilizing: Core damaged (-16). 02572_ S-10 Pest destroyed. 02581_ Hrd. Medium Armor Plating destroyed. 02583_ Imp. Medium Laser destroyed. Map ----- +----------------------------------------------------+ | ????# #???????????????# # #????????? | | ????#######???????????????# # #????????? | | ??????????????????????????### #????????? | | ??????????????????????????? # #????????? | | ??????????????????????????# # #????????? | | ??????????????????????????# # % #????????? | | ??????????????????????????### #????????? | | ???????????????????????????## #????????? | | ???????????????????????????## #???###### | | ???????????????????????????? ?? | | ???????????????????????????? ? | | ???????????????????????????? ??? | | ????????????????????????????## ####??????###### | | ?????????????????????????????? #???????????#### | | ???????????????????#######???? ????????????# | | ?????????????????? ???? ????????????# | | ?????????????????#""" #??# #???????????#""" | | ?????????????????#""" #??# #???????????#""" | | ?????????????????#""" #??# #???????????#""" | | ?????????????????/ #??# #???????????#""" | | ?????????????????#""" #??# #########???# "" | | ???????????????????"" #??# ##! =]]#???# | | ????????????????????? s #??# ##! ]#???# | | ??????????????????????? #??# ## #???# | | ????????????????????????#s#??# ### ##??# | | ??????????????????????###@#### ### #??# | | ??????????????######### *%st ####### | | ??????????? [ ! | | ??????????? Y | | ??????????? ##+####### ####### | | ??????????????????????####### ## #??# | | ????????????????????????????# #########??# | | ????????????????????????????#! !#?????????# "" | | ????????????????????????????##!!!!##?????????## "" | | ?????????????????????????????######???????????# "" | | ??????????????????????????????????????????????# | | ??????????????????????????????????????????????#### | | | | | | | | | | | | | | | | | | | | | | | | | | | +----------------------------------------------------+ Best States ------------- Heat Dissipation 42 Energy Generation 14 Energy Capacity 265 Matter Stores 300 Matter Capacity 300 Sight Range 16 Terrain Scan Range 16 Terrain Scan Density 10 Armor Coverage 225 Evasion (%) 46 Targeting Accuracy 5 Recoil Reduction 2 Offensive Hacking 10 Item Schematics ----------------- None Robot Schematics ------------------ None Fabricated ------------ Nothing Repaired ---------- Lgt. Treads | 47% | -9/Materials Studied --------- Wheel | -9/Materials | Hacked Flight Unit | -9/Materials | Hacked Imp. Ion Engine | -9/Materials | Hacked Alien Tech Used ----------------- None Achievements -------------- GoHome() Party Time Challenges ------------ None Game ------ Seed PotentialStasisPlatform Manual? 0 Play Time 00:37:31 Cumulative 11.9 hours Start 2025.11.06 @ 22:45:44 End 2025.11.06 @ 23:22:28 Sessions 1 Manual Loads 0 Difficulty Rogue Special Mode None Game No. 9 Rogue 9 Adventurer 0 Explorer 0 Win Type - Total 0 Types 0/0/0/0/0/0/0/0/0/0 Lore% 12 Gallery% 13 Achievement% 14 Wizard Run 0 Options --------- Layout 1 ASCII 0 Keyboard 1 Movement Vi Keybinds 0 Fullscreen 2 Font 48/Terminus Map View 50x35 Zoom Use 0% Tactical HUD 1 Map Filters NONE Filters NONE Steam 1 RUN: a3288cd8-c364-4cfd-a834-4c39a17caf90